[Event "*** Titled Tuesday Blitz"]
[Site "Chess.com"]
[Date "2020.04.14"]
[Round "3"]
[White "GodDMuhammad"]
[Black "Olkaa"]
[Result "0-1"]
[WhiteElo "2244"]
[BlackElo "2646"]
[TimeControl "180+1"]
[EndTime "10:27:36 PDT"]
[Termination "Olkaa won by resignation"]

1. f4 {[%clk 0:03:00.9]} 1... g6 {[%clk 0:02:57]} 2. Nf3 {[%clk 0:03:00.9]} 2...
Bg7 {[%clk 0:02:57.1]} 3. g3 {[%clk 0:03:01]} 3... d6 {[%clk 0:02:55.8]} 4. Bg2
{[%clk 0:03:01.1]} 4... e5 {[%clk 0:02:54.8]} 5. d3 {[%clk 0:03:01.2]} 5... Ne7
{[%clk 0:02:47.9]} 6. c3 {[%clk 0:03:01.4]} 6... O-O {[%clk 0:02:47.5]} 7. O-O
{[%clk 0:03:01.2]} 7... Nbc6 {[%clk 0:02:43.3]} 8. e4 {[%clk 0:03:00.9]} 8... h6
{[%clk 0:02:41.1]} 9. Be3 {[%clk 0:02:55.7]} 9... Be6 {[%clk 0:02:39.9]} 10.
Nbd2 {[%clk 0:02:55.5]} 10... Qd7 {[%clk 0:02:39.3]} 11. Nh4 {[%clk 0:02:52.8]}
11... exf4 {[%clk 0:02:18.7]} 12. gxf4 {[%clk 0:02:53.7]} 12... f5 {[%clk
0:02:18.2]} 13. d4 {[%clk 0:02:37.2]} 13... fxe4 {[%clk 0:02:15.9]} 14. Bxe4
{[%clk 0:02:36.6]} 14... Nf5 {[%clk 0:02:03.6]} 15. Bf2 {[%clk 0:02:14.8]} 15...
Nxh4 {[%clk 0:01:57.9]} 16. Bxh4 {[%clk 0:02:15.7]} 16... Bf5 {[%clk 0:01:58.2]}
17. Bd5+ {[%clk 0:02:10.8]} 17... Kh7 {[%clk 0:01:54.2]} 18. Qf3 {[%clk
0:01:38.8]} 18... Rae8 {[%clk 0:01:51.3]} 19. Rae1 {[%clk 0:01:37.9]} 19... Rxe1
{[%clk 0:01:35.8]} 20. Bxe1 {[%clk 0:01:33.6]} 20... Re8 {[%clk 0:01:33]} 21.
Nc4 {[%clk 0:01:26.9]} 21... Bh3 {[%clk 0:01:25.1]} 22. Bg3 {[%clk 0:01:12.4]}
22... Bxf1 {[%clk 0:01:24.3]} 23. Kxf1 {[%clk 0:01:13.3]} 23... Ne7 {[%clk
0:01:19.8]} 24. Bxb7 {[%clk 0:00:51.7]} 24... c6 {[%clk 0:01:19.6]} 25. Ba6
{[%clk 0:00:48.2]} 25... Nd5 {[%clk 0:01:10.9]} 26. Nd2 {[%clk 0:00:38.6]} 26...
Qh3+ {[%clk 0:00:58.5]} 27. Kg1 {[%clk 0:00:24.4]} 27... Re3 {[%clk 0:00:58]}
28. Qf2 {[%clk 0:00:18.1]} 28... Re7 {[%clk 0:00:46.5]} 29. Bd3 {[%clk
0:00:16.6]} 29... Rf7 {[%clk 0:00:42.4]} 30. c4 {[%clk 0:00:12.9]} 30... Nxf4
{[%clk 0:00:40.5]} 31. Bxf4 {[%clk 0:00:12.3]} 31... Qxd3 {[%clk 0:00:40]} 0-1

[Event "*** Titled Tuesday Blitz"]
[Site "Chess.com"]
[Date "2020.04.14"]
[Round "3"]
[White "want2lose"]
[Black "Riptide27"]
[Result "1/2-1/2"]
[WhiteElo "2757"]
[BlackElo "2471"]
[TimeControl "180+1"]
[EndTime "10:27:37 PDT"]
[Termination "Game drawn by repetition"]

1. d4 {[%clk 0:03:00.9]} 1... d5 {[%clk 0:02:58.2]} 2. c4 {[%clk 0:03:00.6]}
2... e6 {[%clk 0:02:58.7]} 3. Nf3 {[%clk 0:03:00.8]} 3... Nf6 {[%clk 0:02:57.2]}
4. Nc3 {[%clk 0:02:59.9]} 4... dxc4 {[%clk 0:02:57]} 5. e3 {[%clk 0:02:55.1]}
5... a6 {[%clk 0:02:53.4]} 6. a4 {[%clk 0:02:52.3]} 6... Nbd7 {[%clk 0:02:54]}
7. Bxc4 {[%clk 0:02:52.2]} 7... b6 {[%clk 0:02:51.8]} 8. O-O {[%clk 0:02:51.1]}
8... Bb7 {[%clk 0:02:51.6]} 9. Qe2 {[%clk 0:02:40.4]} 9... Bb4 {[%clk
0:02:51.9]} 10. Bd2 {[%clk 0:02:39.2]} 10... O-O {[%clk 0:02:50.6]} 11. Rac1
{[%clk 0:02:36.4]} 11... Qe7 {[%clk 0:02:49.4]} 12. Rfd1 {[%clk 0:02:35.9]}
12... c5 {[%clk 0:02:48.6]} 13. h3 {[%clk 0:02:25.8]} 13... h6 {[%clk 0:02:46]}
14. Be1 {[%clk 0:02:03.2]} 14... cxd4 {[%clk 0:02:22.9]} 15. exd4 {[%clk
0:02:04.1]} 15... Rfd8 {[%clk 0:02:16.6]} 16. d5 {[%clk 0:02:00.8]} 16... exd5
{[%clk 0:01:58]} 17. Qxe7 {[%clk 0:01:49.8]} 17... Bxe7 {[%clk 0:01:58.9]} 18.
Nxd5 {[%clk 0:01:49.2]} 18... Nxd5 {[%clk 0:01:58.8]} 19. Bxd5 {[%clk
0:01:50.1]} 19... Bxd5 {[%clk 0:01:58.9]} 20. Rxd5 {[%clk 0:01:51]} 20... Nc5
{[%clk 0:01:58.4]} 21. Rxd8+ {[%clk 0:01:44.5]} 21... Rxd8 {[%clk 0:01:59.3]}
22. a5 {[%clk 0:01:42.6]} 22... Nd3 {[%clk 0:01:43]} 23. Rc7 {[%clk 0:00:38.4]}
23... Nxe1 {[%clk 0:01:41.5]} 24. Rxe7 {[%clk 0:00:32.3]} 24... Nxf3+ {[%clk
0:01:40.6]} 25. gxf3 {[%clk 0:00:33.2]} 25... bxa5 {[%clk 0:01:38.5]} 26. Re5
{[%clk 0:00:33]} 26... Rb8 {[%clk 0:01:33.1]} 27. Rxa5 {[%clk 0:00:31.9]} 27...
Rxb2 {[%clk 0:01:32.4]} 28. Rxa6 {[%clk 0:00:31.1]} 28... g6 {[%clk 0:01:31.8]}
29. Kg2 {[%clk 0:00:32]} 29... Kg7 {[%clk 0:01:31]} 30. Kg3 {[%clk 0:00:32.2]}
30... h5 {[%clk 0:01:30.3]} 31. Ra4 {[%clk 0:00:31.9]} 31... Kf6 {[%clk
0:01:29]} 32. Rc4 {[%clk 0:00:31.7]} 32... Kf5 {[%clk 0:01:27.9]} 33. Rc5+
{[%clk 0:00:31.7]} 33... Kf6 {[%clk 0:01:28]} 34. Rc4 {[%clk 0:00:32.6]} 34...
Kf5 {[%clk 0:01:28.1]} 35. h4 {[%clk 0:00:31.9]} 35... Rb1 {[%clk 0:01:27.2]}
36. Kg2 {[%clk 0:00:31.5]} 36... Rd1 {[%clk 0:01:25.8]} 37. Re4 {[%clk
0:00:31.1]} 37... Rb1 {[%clk 0:01:25.2]} 38. Rc4 {[%clk 0:00:30.6]} 38... Re1
{[%clk 0:01:25]} 39. Ra4 {[%clk 0:00:29.2]} 39... Rd1 {[%clk 0:01:24.6]} 40. Kg3
{[%clk 0:00:27.7]} 40... Rg1+ {[%clk 0:01:24.1]} 41. Kh2 {[%clk 0:00:27.8]}
41... Re1 {[%clk 0:01:25]} 42. Kg2 {[%clk 0:00:27.8]} 42... Rd1 {[%clk 0:01:25]}
43. Ra7 {[%clk 0:00:24]} 43... Kf6 {[%clk 0:01:19.5]} 44. Ra5 {[%clk 0:00:21.2]}
44... Rd4 {[%clk 0:01:17.4]} 45. Kg3 {[%clk 0:00:21.1]} 45... Rd1 {[%clk
0:01:16.5]} 46. Ra6+ {[%clk 0:00:18.8]} 46... Kf5 {[%clk 0:01:15.1]} 47. Ra5+
{[%clk 0:00:19.7]} 47... Kf6 {[%clk 0:01:15.2]} 48. Ra6+ {[%clk 0:00:20.2]}
48... Kf5 {[%clk 0:01:15.2]} 49. Ra5+ {[%clk 0:00:20.6]} 49... Kf6 {[%clk
0:01:15.3]} 1/2-1/2

[Event "*** Titled Tuesday Blitz"]
[Site "Chess.com"]
[Date "2020.04.14"]
[Round "3"]
[White "Mischuk_D"]
[Black "Alopekos"]
[Result "1-0"]
[WhiteElo "2703"]
[BlackElo "2434"]
[TimeControl "180+1"]
[EndTime "10:27:37 PDT"]
[Termination "Mischuk_D won on time"]

1. e4 {[%clk 0:03:00.9]} 1... e5 {[%clk 0:03:00]} 2. Nf3 {[%clk 0:03:00.7]} 2...
Nc6 {[%clk 0:03:00.6]} 3. Nc3 {[%clk 0:02:59.8]} 3... Nf6 {[%clk 0:03:00.1]} 4.
Bb5 {[%clk 0:02:59.9]} 4... Nd4 {[%clk 0:02:55.6]} 5. Bc4 {[%clk 0:02:59.6]}
5... d5 {[%clk 0:02:40.3]} 6. exd5 {[%clk 0:02:56.7]} 6... Bg4 {[%clk
0:02:39.2]} 7. d3 {[%clk 0:02:47.2]} 7... Qd7 {[%clk 0:02:14.8]} 8. Be3 {[%clk
0:02:46.5]} 8... Bxf3 {[%clk 0:02:05.7]} 9. gxf3 {[%clk 0:02:45.4]} 9... O-O-O
{[%clk 0:02:05.5]} 10. f4 {[%clk 0:02:33]} 10... Qf5 {[%clk 0:01:54.2]} 11. fxe5
{[%clk 0:02:30.1]} 11... Nf3+ {[%clk 0:01:52.1]} 12. Kf1 {[%clk 0:02:17.6]}
12... Ng4 {[%clk 0:01:46.3]} 13. Qe2 {[%clk 0:01:55.8]} 13... Qh5 {[%clk
0:00:24.7]} 14. h3 {[%clk 0:01:49.7]} 14... Ngh2+ {[%clk 0:00:19.7]} 15. Rxh2
{[%clk 0:01:49.1]} 15... Nxh2+ {[%clk 0:00:19.8]} 16. Kg2 {[%clk 0:01:49.7]}
16... Qxe5 {[%clk 0:00:17.4]} 17. f4 {[%clk 0:01:45.6]} 17... Qf5 {[%clk
0:00:10.1]} 18. Kxh2 {[%clk 0:01:45.4]} 18... Bd6 {[%clk 0:00:10.4]} 19. Qf3
{[%clk 0:01:44.5]} 19... Rde8 {[%clk 0:00:08.2]} 20. Ne4 {[%clk 0:01:44.1]}
20... g5 {[%clk 0:00:07.1]} 21. Nxd6+ {[%clk 0:01:43.6]} 21... cxd6 {[%clk
0:00:08]} 22. Rf1 {[%clk 0:01:42.2]} 22... gxf4 {[%clk 0:00:05.4]} 23. Bxf4
{[%clk 0:01:42.3]} 23... Rhg8 {[%clk 0:00:03.5]} 24. Bg3 {[%clk 0:01:37.3]}
24... Qxf3 {[%clk 0:00:03.1]} 25. Rxf3 {[%clk 0:01:37.3]} 25... Re2+ {[%clk
0:00:03.2]} 26. Rf2 {[%clk 0:01:37.6]} 26... Rge8 {[%clk 0:00:02.6]} 27. d4
{[%clk 0:01:36.2]} 27... Rxf2+ {[%clk 0:00:02.8]} 28. Bxf2 {[%clk 0:01:36.5]}
28... Kc7 {[%clk 0:00:02.7]} 29. Bd3 {[%clk 0:01:36.3]} 29... h6 {[%clk
0:00:01.7]} 30. Kg2 {[%clk 0:01:36.6]} 30... Rg8+ {[%clk 0:00:01.6]} 31. Kf3
{[%clk 0:01:36.6]} 31... Rg5 {[%clk 0:00:02.2]} 32. h4 {[%clk 0:01:35.5]} 32...
Rg8 {[%clk 0:00:01.8]} 33. Be3 {[%clk 0:01:35.1]} 33... h5 {[%clk 0:00:02.3]}
34. Bg5 {[%clk 0:01:34.9]} 34... f6 {[%clk 0:00:02.7]} 35. Bf4 {[%clk
0:01:33.1]} 35... Rg4 {[%clk 0:00:03.3]} 36. c4 {[%clk 0:01:28.4]} 36... Rxh4
{[%clk 0:00:03.4]} 37. c5 {[%clk 0:01:28.8]} 37... Rh3+ {[%clk 0:00:03.3]} 38.
Ke2 {[%clk 0:01:24.1]} 38... Rh4 {[%clk 0:00:02.8]} 39. Bxd6+ {[%clk 0:01:24]}
39... Kd8 {[%clk 0:00:03]} 40. Ke3 {[%clk 0:01:22.8]} 40... Rh3+ {[%clk
0:00:03.4]} 41. Kd2 {[%clk 0:01:22.9]} 41... h4 {[%clk 0:00:02.8]} 42. c6 {[%clk
0:01:22.8]} 42... bxc6 {[%clk 0:00:02]} 43. dxc6 {[%clk 0:01:23.7]} 43... Rxd3+
{[%clk 0:00:01.2]} 44. Kxd3 {[%clk 0:01:23.6]} 44... h3 {[%clk 0:00:01.1]} 45.
d5 {[%clk 0:01:23.7]} 45... f5 {[%clk 0:00:01.3]} 46. Bh2 {[%clk 0:01:23.7]} 1-0

[Event "*** Titled Tuesday Blitz"]
[Site "Chess.com"]
[Date "2020.04.14"]
[Round "3"]
[White "paradise10"]
[Black "MrChessSponge"]
[Result "0-1"]
[WhiteElo "2734"]
[BlackElo "2406"]
[TimeControl "180+1"]
[EndTime "10:27:37 PDT"]
[Termination "MrChessSponge won by resignation"]

1. e4 {[%clk 0:03:00.9]} 1... c5 {[%clk 0:02:58]} 2. Nf3 {[%clk 0:02:58.4]} 2...
d6 {[%clk 0:02:57.9]} 3. d4 {[%clk 0:02:56.8]} 3... cxd4 {[%clk 0:02:58.8]} 4.
Nxd4 {[%clk 0:02:57.7]} 4... Nf6 {[%clk 0:02:58.7]} 5. Nc3 {[%clk 0:02:57.6]}
5... a6 {[%clk 0:02:58.3]} 6. h4 {[%clk 0:02:53.2]} 6... Nc6 {[%clk 0:02:54.3]}
7. Bg5 {[%clk 0:02:49.2]} 7... e6 {[%clk 0:02:48.3]} 8. Nxc6 {[%clk 0:02:39.8]}
8... bxc6 {[%clk 0:02:47.5]} 9. e5 {[%clk 0:02:34.6]} 9... dxe5 {[%clk
0:02:41.7]} 10. Qxd8+ {[%clk 0:02:35.5]} 10... Kxd8 {[%clk 0:02:41]} 11. Ne4
{[%clk 0:02:28.9]} 11... Be7 {[%clk 0:02:37.9]} 12. Nxf6 {[%clk 0:02:24.3]}
12... gxf6 {[%clk 0:02:10.1]} 13. O-O-O+ {[%clk 0:02:23.8]} 13... Kc7 {[%clk
0:02:09.6]} 14. Be3 {[%clk 0:02:24.4]} 14... a5 {[%clk 0:02:08.5]} 15. a3 {[%clk
0:02:10.9]} 15... Ba6 {[%clk 0:02:01.3]} 16. Bxa6 {[%clk 0:02:08.1]} 16... Rxa6
{[%clk 0:02:02.2]} 17. Rd2 {[%clk 0:02:07.5]} 17... Raa8 {[%clk 0:01:57.6]} 18.
Rhd1 {[%clk 0:02:02.9]} 18... Rhd8 {[%clk 0:01:48.7]} 19. c4 {[%clk 0:01:57]}
19... f5 {[%clk 0:01:44.1]} 20. Bg5 {[%clk 0:01:52.8]} 20... f6 {[%clk
0:01:37.8]} 21. Rxd8 {[%clk 0:01:45.8]} 21... Rxd8 {[%clk 0:01:29.9]} 22. Rxd8
{[%clk 0:01:45.7]} 22... Kxd8 {[%clk 0:01:30]} 23. Bd2 {[%clk 0:01:44.9]} 23...
a4 {[%clk 0:01:28.8]} 24. Kc2 {[%clk 0:01:35]} 24... h5 {[%clk 0:01:27.6]} 25.
Ba5+ {[%clk 0:01:26.8]} 25... Kc8 {[%clk 0:01:26]} 26. Kc3 {[%clk 0:01:25.8]}
26... Kb7 {[%clk 0:01:18.5]} 27. Bb4 {[%clk 0:01:19.6]} 27... c5 {[%clk
0:01:17.2]} 28. Ba5 {[%clk 0:01:16.4]} 28... f4 {[%clk 0:01:10.6]} 29. b4 {[%clk
0:00:56.3]} 29... axb3 {[%clk 0:01:08.9]} 30. Kxb3 {[%clk 0:00:56]} 30... e4
{[%clk 0:01:03.1]} 31. Bd2 {[%clk 0:00:54.3]} 31... f5 {[%clk 0:00:51.7]} 32.
Bxf4 {[%clk 0:00:48.5]} 32... Bxh4 {[%clk 0:00:51.4]} 33. g3 {[%clk 0:00:47.1]}
33... Bf6 {[%clk 0:00:51.5]} 34. Bd6 {[%clk 0:00:46.8]} 34... Kc6 {[%clk
0:00:50.8]} 35. Bf8 {[%clk 0:00:47.2]} 35... Bd4 {[%clk 0:00:50.4]} 36. a4
{[%clk 0:00:44.4]} 36... Bxf2 {[%clk 0:00:49.9]} 37. a5 {[%clk 0:00:44.8]} 37...
Bxg3 {[%clk 0:00:49.3]} 38. a6 {[%clk 0:00:42.6]} 38... h4 {[%clk 0:00:48.5]}
39. Bxc5 {[%clk 0:00:38]} 39... h3 {[%clk 0:00:45]} 40. Bg1 {[%clk 0:00:37]}
40... h2 {[%clk 0:00:44.8]} 41. Bxh2 {[%clk 0:00:35.1]} 41... Bxh2 {[%clk
0:00:45.7]} 42. c5 {[%clk 0:00:34.7]} 42... Bg1 {[%clk 0:00:44.4]} 43. a7 {[%clk
0:00:34.3]} 43... Kb7 {[%clk 0:00:43.7]} 0-1

[Event "*** Titled Tuesday Blitz"]
[Site "Chess.com"]
[Date "2020.04.14"]
[Round "3"]
[White "floplover"]
[Black "CastleOasisChess"]
[Result "0-1"]
[WhiteElo "2286"]
[BlackElo "2066"]
[TimeControl "180+1"]
[EndTime "10:27:37 PDT"]
[Termination "CastleOasisChess won on time"]

1. d4 {[%clk 0:03:00.9]} 1... d5 {[%clk 0:02:59.5]} 2. c4 {[%clk 0:03:00.5]}
2... e6 {[%clk 0:02:58.4]} 3. Nc3 {[%clk 0:02:59.9]} 3... f5 {[%clk 0:02:57.4]}
4. e3 {[%clk 0:02:51.4]} 4... c6 {[%clk 0:02:57.8]} 5. Bd3 {[%clk 0:02:49.7]}
5... Bd6 {[%clk 0:02:56.3]} 6. Nge2 {[%clk 0:02:47.3]} 6... Nf6 {[%clk
0:02:53.6]} 7. f3 {[%clk 0:02:44.3]} 7... O-O {[%clk 0:02:53.6]} 8. Qc2 {[%clk
0:02:40.3]} 8... Qe7 {[%clk 0:02:37.6]} 9. Bd2 {[%clk 0:02:32.6]} 9... g6 {[%clk
0:02:36.9]} 10. O-O {[%clk 0:02:20.1]} 10... Na6 {[%clk 0:02:33]} 11. a3 {[%clk
0:02:19.5]} 11... dxc4 {[%clk 0:02:28.1]} 12. Bxc4 {[%clk 0:02:15.5]} 12... Kg7
{[%clk 0:02:28.4]} 13. Rae1 {[%clk 0:01:55.2]} 13... e5 {[%clk 0:02:25.1]} 14.
dxe5 {[%clk 0:01:44.6]} 14... Bxe5 {[%clk 0:02:26]} 15. f4 {[%clk 0:01:23.9]}
15... Bc7 {[%clk 0:02:21.3]} 16. Nd4 {[%clk 0:01:09.7]} 16... Nc5 {[%clk
0:02:17.9]} 17. Kh1 {[%clk 0:01:00.4]} 17... Nce4 {[%clk 0:02:17.8]} 18. Bd3
{[%clk 0:00:55.3]} 18... Nxd2 {[%clk 0:02:13.7]} 19. Qxd2 {[%clk 0:00:54.3]}
19... Bd7 {[%clk 0:02:03]} 20. e4 {[%clk 0:00:53.1]} 20... Qd6 {[%clk
0:01:58.6]} 21. Bb1 {[%clk 0:00:32.5]} 21... fxe4 {[%clk 0:01:54.8]} 22. Nxe4
{[%clk 0:00:31.5]} 22... Nxe4 {[%clk 0:01:54.8]} 23. Rxe4 {[%clk 0:00:29]} 23...
Rae8 {[%clk 0:01:55.3]} 24. Rxe8 {[%clk 0:00:27.6]} 24... Rxe8 {[%clk
0:01:49.4]} 25. Qc3 {[%clk 0:00:24.6]} 25... Qf6 {[%clk 0:01:42.1]} 26. f5
{[%clk 0:00:24.2]} 26... Be5 {[%clk 0:01:30.9]} 27. Qb3 {[%clk 0:00:06.2]} 27...
Bxd4 {[%clk 0:01:25.6]} 28. Qxb7 {[%clk 0:00:06.3]} 28... Re7 {[%clk 0:01:24.8]}
29. Qb4 {[%clk 0:00:05.2]} 29... c5 {[%clk 0:01:20.4]} 30. Qc4 {[%clk
0:00:04.8]} 30... Bxf5 {[%clk 0:01:14]} 31. b4 {[%clk 0:00:04.4]} 31... Be6
{[%clk 0:01:06.2]} 32. Qb5 {[%clk 0:00:03.1]} 32... Qe5 {[%clk 0:01:02.1]} 33.
bxc5 {[%clk 0:00:02.7]} 33... Qxc5 {[%clk 0:00:58.2]} 34. Qb8 {[%clk 0:00:02.1]}
34... Rf7 {[%clk 0:00:56.2]} 35. Re1 {[%clk 0:00:02.5]} 35... Qc3 {[%clk
0:00:52.9]} 0-1

[Event "*** Titled Tuesday Blitz"]
[Site "Chess.com"]
[Date "2020.04.14"]
[Round "3"]
[White "dretch"]
[Black "UCantHandleDenker"]
[Result "1-0"]
[WhiteElo "2783"]
[BlackElo "2566"]
[TimeControl "180+1"]
[EndTime "10:27:38 PDT"]
[Termination "dretch won by checkmate"]

1. d4 {[%clk 0:02:56.4]} 1... Nf6 {[%clk 0:02:59.4]} 2. c4 {[%clk 0:02:56.5]}
2... c5 {[%clk 0:02:59]} 3. d5 {[%clk 0:02:56]} 3... d6 {[%clk 0:02:59.3]} 4.
Nc3 {[%clk 0:02:55.9]} 4... g6 {[%clk 0:02:59.8]} 5. e4 {[%clk 0:02:56.3]} 5...
Bg7 {[%clk 0:03:00.3]} 6. h3 {[%clk 0:02:56.8]} 6... O-O {[%clk 0:03:00.3]} 7.
Nf3 {[%clk 0:02:57.4]} 7... e6 {[%clk 0:03:00.6]} 8. Bd3 {[%clk 0:02:57.6]} 8...
exd5 {[%clk 0:03:00.7]} 9. cxd5 {[%clk 0:02:58.5]} 9... a6 {[%clk 0:02:57.1]}
10. a4 {[%clk 0:02:58.2]} 10... Re8 {[%clk 0:02:55.5]} 11. O-O {[%clk
0:02:57.7]} 11... Nbd7 {[%clk 0:02:56]} 12. Bf4 {[%clk 0:02:55.8]} 12... Bf8
{[%clk 0:02:56]} 13. Re1 {[%clk 0:02:55.3]} 13... Nh5 {[%clk 0:02:55.9]} 14. Bh2
{[%clk 0:02:55]} 14... Qc7 {[%clk 0:02:39.3]} 15. Be2 {[%clk 0:02:53.3]} 15...
Bh6 {[%clk 0:02:26.1]} 16. e5 {[%clk 0:02:51.8]} 16... Bf4 {[%clk 0:02:10.8]}
17. e6 {[%clk 0:02:47.4]} 17... fxe6 {[%clk 0:02:04.3]} 18. dxe6 {[%clk
0:02:47]} 18... Ndf6 {[%clk 0:02:02.4]} 19. g3 {[%clk 0:02:33.8]} 19... Bh6
{[%clk 0:01:42.1]} 20. Bc4 {[%clk 0:02:17.2]} 20... Ng7 {[%clk 0:01:30.1]} 21.
g4 {[%clk 0:02:11.7]} 21... Bxe6 {[%clk 0:01:23.2]} 22. Rxe6 {[%clk 0:02:09]}
22... Nxe6 {[%clk 0:01:24.1]} 23. g5 {[%clk 0:02:08.5]} 23... Bg7 {[%clk
0:01:12.6]} 24. gxf6 {[%clk 0:02:05.9]} 24... Bxf6 {[%clk 0:01:13.5]} 25. Nd5
{[%clk 0:02:04.1]} 25... Qg7 {[%clk 0:01:11.6]} 26. Nf4 {[%clk 0:02:03.3]} 26...
Bxb2 {[%clk 0:00:52.6]} 27. Nxe6 {[%clk 0:02:02.3]} 27... Qc3 {[%clk 0:00:41.6]}
28. Bd5 {[%clk 0:01:58.4]} 28... Bxa1 {[%clk 0:00:39.5]} 29. Nfg5 {[%clk
0:01:42.8]} 29... Rxe6 {[%clk 0:00:29]} 30. Bxe6+ {[%clk 0:01:37.8]} 30... Kg7
{[%clk 0:00:25.8]} 31. Bxd6 {[%clk 0:00:44.6]} 31... Rf8 {[%clk 0:00:21.4]} 32.
Bxf8+ {[%clk 0:00:40.5]} 32... Kxf8 {[%clk 0:00:20.4]} 33. Qd8+ {[%clk
0:00:39.5]} 33... Kg7 {[%clk 0:00:21]} 34. Qe7+ {[%clk 0:00:38.8]} 34... Kh6
{[%clk 0:00:19.2]} 35. Nf7+ {[%clk 0:00:39]} 35... Kg7 {[%clk 0:00:18.9]} 36.
Ne5+ {[%clk 0:00:38.7]} 36... Kh6 {[%clk 0:00:19]} 37. Ng4+ {[%clk 0:00:38.2]}
37... Kh5 {[%clk 0:00:18.6]} 38. Qxh7+ {[%clk 0:00:38.1]} 38... Kg5 {[%clk
0:00:18.5]} 39. Qh6# {[%clk 0:00:38.4]} 1-0

[Event "*** Titled Tuesday Blitz"]
[Site "Chess.com"]
[Date "2020.04.14"]
[Round "3"]
[White "Siemba"]
[Black "Schandenfreude"]
[Result "1-0"]
[WhiteElo "2248"]
[BlackElo "2483"]
[TimeControl "180+1"]
[EndTime "10:27:38 PDT"]
[Termination "Siemba won on time"]

1. e4 {[%clk 0:03:00.9]} 1... e5 {[%clk 0:02:59.4]} 2. Nf3 {[%clk 0:02:56.4]}
2... Nf6 {[%clk 0:02:59.4]} 3. Nxe5 {[%clk 0:02:00.5]} 3... d6 {[%clk
0:02:58.5]} 4. Nf3 {[%clk 0:01:57.1]} 4... Nxe4 {[%clk 0:02:58.6]} 5. Bd3 {[%clk
0:01:57.1]} 5... Nc5 {[%clk 0:02:51.9]} 6. Be2 {[%clk 0:01:55.9]} 6... Be7
{[%clk 0:02:47.5]} 7. d4 {[%clk 0:01:55.4]} 7... Ne4 {[%clk 0:02:43.9]} 8. O-O
{[%clk 0:01:56.3]} 8... O-O {[%clk 0:02:43.4]} 9. Bd3 {[%clk 0:01:55.1]} 9... d5
{[%clk 0:02:40]} 10. c3 {[%clk 0:01:54.9]} 10... c6 {[%clk 0:02:38.6]} 11. Nbd2
{[%clk 0:01:54.9]} 11... Nxd2 {[%clk 0:02:26.5]} 12. Bxd2 {[%clk 0:01:55.2]}
12... Nd7 {[%clk 0:02:26.6]} 13. Re1 {[%clk 0:01:52.7]} 13... Nf6 {[%clk
0:02:25.6]} 14. Ne5 {[%clk 0:01:50.9]} 14... Nd7 {[%clk 0:02:15.1]} 15. Qh5
{[%clk 0:01:40.8]} 15... g6 {[%clk 0:02:13.8]} 16. Bxg6 {[%clk 0:01:20.9]} 16...
fxg6 {[%clk 0:02:06.4]} 17. Nxg6 {[%clk 0:01:20.1]} 17... Nf6 {[%clk 0:01:49]}
18. Qh6 {[%clk 0:01:04.5]} 18... hxg6 {[%clk 0:01:38.6]} 19. Qxg6+ {[%clk
0:01:05.4]} 19... Kh8 {[%clk 0:01:37.1]} 20. Re5 {[%clk 0:01:05.2]} 20... Qe8
{[%clk 0:00:18.8]} 21. Qh6+ {[%clk 0:00:54.3]} 21... Nh7 {[%clk 0:00:17.8]} 22.
Rae1 {[%clk 0:00:51.4]} 22... Rf7 {[%clk 0:00:15.1]} 23. Bg5 {[%clk 0:00:49.2]}
23... Be6 {[%clk 0:00:10]} 24. Rxe6 {[%clk 0:00:47.6]} 24... Qf8 {[%clk
0:00:05]} 25. Rxe7 {[%clk 0:00:35.6]} 25... Rxe7 {[%clk 0:00:03.7]} 26. Rxe7
{[%clk 0:00:34.6]} 1-0

[Event "*** Titled Tuesday Blitz"]
[Site "Chess.com"]
[Date "2020.04.14"]
[Round "3"]
[White "quesfr"]
[Black "littleozy"]
[Result "1-0"]
[WhiteElo "2216"]
[BlackElo "2414"]
[TimeControl "180+1"]
[EndTime "10:27:38 PDT"]
[Termination "quesfr won on time"]

1. e4 {[%clk 0:03:00.9]} 1... c6 {[%clk 0:02:59.8]} 2. d4 {[%clk 0:03:00.4]}
2... d5 {[%clk 0:03:00.7]} 3. e5 {[%clk 0:03:01]} 3... Bf5 {[%clk 0:03:00]} 4.
h4 {[%clk 0:03:01.2]} 4... h5 {[%clk 0:02:59.5]} 5. Bd3 {[%clk 0:03:01.7]} 5...
Bxd3 {[%clk 0:02:57.8]} 6. Qxd3 {[%clk 0:03:02.6]} 6... e6 {[%clk 0:02:58.3]} 7.
Bg5 {[%clk 0:02:58.4]} 7... Qa5+ {[%clk 0:02:55.6]} 8. Nd2 {[%clk 0:02:57.9]}
8... Qa6 {[%clk 0:02:55.7]} 9. c4 {[%clk 0:02:57.8]} 9... Bb4 {[%clk 0:02:42.8]}
10. b3 {[%clk 0:02:57.7]} 10... Ne7 {[%clk 0:02:34.2]} 11. Ne2 {[%clk
0:02:57.5]} 11... Nd7 {[%clk 0:02:29.1]} 12. O-O {[%clk 0:02:56.5]} 12... f6
{[%clk 0:02:19.2]} 13. exf6 {[%clk 0:01:55.2]} 13... gxf6 {[%clk 0:02:20.1]} 14.
a3 {[%clk 0:01:53]} 14... Bd6 {[%clk 0:01:58.3]} 15. Bf4 {[%clk 0:01:52.9]}
15... e5 {[%clk 0:01:53.5]} 16. dxe5 {[%clk 0:01:53.1]} 16... fxe5 {[%clk
0:01:53.5]} 17. Bg5 {[%clk 0:01:52.1]} 17... O-O-O {[%clk 0:01:33.7]} 18. b4
{[%clk 0:01:43.3]} 18... Rdf8 {[%clk 0:01:06.7]} 19. b5 {[%clk 0:01:41.2]} 19...
cxb5 {[%clk 0:00:50.9]} 20. cxb5 {[%clk 0:01:33.3]} 20... Qb6 {[%clk 0:00:46]}
21. Bxe7 {[%clk 0:01:31.5]} 21... Bxe7 {[%clk 0:00:43.3]} 22. Qxd5 {[%clk
0:01:31.7]} 22... Kb8 {[%clk 0:00:26.2]} 23. Qxd7 {[%clk 0:01:24.3]} 23... Bxh4
{[%clk 0:00:19.9]} 24. Ne4 {[%clk 0:01:20.1]} 24... Rhg8 {[%clk 0:00:10.9]} 25.
Qd6+ {[%clk 0:01:17]} 25... Qxd6 {[%clk 0:00:08.4]} 26. Nxd6 {[%clk 0:01:17.9]}
26... Rg6 {[%clk 0:00:05.6]} 27. Ne4 {[%clk 0:01:16.5]} 27... Rg4 {[%clk
0:00:03.7]} 28. f3 {[%clk 0:01:14.2]} 28... Rg7 {[%clk 0:00:03.3]} 29. Kh2
{[%clk 0:01:03.5]} 29... Bd8 {[%clk 0:00:03.7]} 30. Rad1 {[%clk 0:00:59.2]}
30... h4 {[%clk 0:00:02.5]} 31. Rd5 {[%clk 0:00:57]} 31... Bb6 {[%clk 0:00:02]}
32. Rfd1 {[%clk 0:00:56.1]} 32... a6 {[%clk 0:00:01.5]} 33. bxa6 {[%clk
0:00:54.3]} 33... bxa6 {[%clk 0:00:01.3]} 34. Rd6 {[%clk 0:00:54.2]} 1-0